{"text_format":"3","workbook":"xlsx","n_sheets":4,"sheets":["Factura","Clientes","Facturas - principales","Detalles de la factura"],"not_rendered":{"images":6,"defined_names":8},"read":"whole","date_system":"1900"}

{"sheet":"Factura","index":0,"n_rows":40,"n_cols":8,"rows_kept":40,"merged":[[0,3,0,6],[3,5,3,6],[35,4,35,5],[36,1,36,2],[36,4,36,5],[37,4,37,5],[38,4,38,5],[39,4,39,5]]}
[{"$nulls":3},"¿Estás cansado de hacer las facturas manualmente? ¿Quieres recibir el pago antes? Suscríbete a Microsoft Invoicing hoy mismo."]
[{"$nulls":7}," "]
[]
[]
[null,null,"EL NOMBRE DE TU EMPRESA"]
[null,null," Dirección postal"]
[null,null," Ciudad, estado y código postal"]
[]
[null,"FACTURAR A ",{"$f":"IFERROR(VLOOKUP(VLOOKUP(rngFactura,FacturasPrincipal[],2,FALSE),ListadoDeClientes[],3,TRUE),\"\")","v":"Contoso, Ltd"},{"$f":"\"Teléfono: \"&IFERROR(VLOOKUP(VLOOKUP(rngFactura,FacturasPrincipal[],2,FALSE),ListadoDeClientes[],9,FALSE),\"\")","v":"Teléfono: 432-555-0189"},null,"FACTURA N.°","3-456-2"]
[null,null,{"$f":"IFERROR(IF((VLOOKUP(VLOOKUP(rngFactura,FacturasPrincipal[],2,FALSE),ListadoDeClientes[],5,FALSE))=\"\",\"\",(VLOOKUP(VLOOKUP(rngFactura,FacturasPrincipal[],2,FALSE),ListadoDeClientes[],5,FALSE))),\"\")","v":"Calle Los Nogales 567"},{"$f":"\"Fax: \"&IFERROR(VLOOKUP(VLOOKUP(rngFactura,FacturasPrincipal[],2,FALSE),ListadoDeClientes[],11,FALSE),\"\")","v":"Fax: 432-555-0123"},null,"Fecha de la factura:",{"$f":"IFERROR(IF(VLOOKUP(rngFactura,FacturasPrincipal[],3,FALSE)=\"\",\"\",VLOOKUP(rngFactura,FacturasPrincipal[],3,FALSE)),\"\")","v":"2019-11-29"}]
[null,null,{"$f":"IFERROR(VLOOKUP(VLOOKUP(rngFactura,FacturasPrincipal[],2,FALSE),ListadoDeClientes[],6,FALSE)&\", \"& VLOOKUP(VLOOKUP(G9,FacturasPrincipal[],2,FALSE),ListadoDeClientes[],7,FALSE)&\" \"&VLOOKUP(VLOOKUP(G9,FacturasPrincipal[],2,FALSE),ListadoDeClientes[],8,FALSE),\"\")","v":"San Marcos, GR 98765"},{"$f":"\"Correo electrónico: \"&IFERROR(VLOOKUP(VLOOKUP(rngFactura,FacturasPrincipal[],2,FALSE),ListadoDeClientes[],10,FALSE),\"\")","v":"Correo electrónico: alguien@ejemplo.com"}]
[]
[]
[null,"Artículo n.º","Descripción","Cantidad","Precio unitario","Descuento","Precio"]
[null,{"$f":"IFERROR(INDEX(DetallesDeFactura[],SMALL(IF(DetallesDeFactura[Factura n.°]=rngFactura,ROW(DetallesDeFactura[])-ROW(DetallesDeFactura[#Headers])), ROW(2:2)), MATCH($B$14, DetallesDeFactura[#Headers], 0)),\"\")","v":"Z4568"},{"$f":"IFERROR(INDEX(DetallesDeFactura[],SMALL(IF(DetallesDeFactura[Factura n.°]=rngFactura,ROW(DetallesDeFactura[])-ROW(DetallesDeFactura[#Headers])), ROW(2:2)), MATCH($C$14, DetallesDeFactura[#Headers], 0)),\"\")","v":"Factura 3-456-2 Datos 2"},{"$f":"IFERROR(INDEX(DetallesDeFactura[],SMALL(IF(DetallesDeFactura[Factura n.°]=rngFactura,ROW(DetallesDeFactura[])-ROW(DetallesDeFactura[#Headers])), ROW(2:2)), MATCH($D$14, DetallesDeFactura[#Headers], 0)),\"\")","v":40},{"$f":"IFERROR(INDEX(DetallesDeFactura[],SMALL(IF(DetallesDeFactura[Factura n.°]=rngFactura,ROW(DetallesDeFactura[])-ROW(DetallesDeFactura[#Headers])), ROW(2:2)), MATCH($E$14, DetallesDeFactura[#Headers], 0)),\"\")","v":{"v":4,"d":"$4.00"}},{"$f":"IFERROR(INDEX(DetallesDeFactura[],SMALL(IF(DetallesDeFactura[Factura n.°]=rngFactura,ROW(DetallesDeFactura[])-ROW(DetallesDeFactura[#Headers])), ROW(2:2)), MATCH($F$14, DetallesDeFactura[#Headers], 0)),\"\")","v":{"v":5,"d":"$5.00"}},{"$f":"IFERROR((D15*E15)-F15,\"\")","v":{"v":155,"d":"$155.00"}}]
[null,{"$f":"IFERROR(INDEX(DetallesDeFactura[],SMALL(IF(DetallesDeFactura[Factura n.°]=rngFactura,ROW(DetallesDeFactura[])-ROW(DetallesDeFactura[#Headers])), ROW(3:3)), MATCH($B$14, DetallesDeFactura[#Headers], 0)),\"\")","v":"Z4569"},{"$f":"IFERROR(INDEX(DetallesDeFactura[],SMALL(IF(DetallesDeFactura[Factura n.°]=rngFactura,ROW(DetallesDeFactura[])-ROW(DetallesDeFactura[#Headers])), ROW(3:3)), MATCH($C$14, DetallesDeFactura[#Headers], 0)),\"\")","v":"Factura 3-456-2 Datos 3"},{"$f":"IFERROR(INDEX(DetallesDeFactura[],SMALL(IF(DetallesDeFactura[Factura n.°]=rngFactura,ROW(DetallesDeFactura[])-ROW(DetallesDeFactura[#Headers])), ROW(3:3)), MATCH($D$14, DetallesDeFactura[#Headers], 0)),\"\")","v":30},{"$f":"IFERROR(INDEX(DetallesDeFactura[],SMALL(IF(DetallesDeFactura[Factura n.°]=rngFactura,ROW(DetallesDeFactura[])-ROW(DetallesDeFactura[#Headers])), ROW(3:3)), MATCH($E$14, DetallesDeFactura[#Headers], 0)),\"\")","v":{"v":6,"d":"$6.00"}},{"$f":"IFERROR(INDEX(DetallesDeFactura[],SMALL(IF(DetallesDeFactura[Factura n.°]=rngFactura,ROW(DetallesDeFactura[])-ROW(DetallesDeFactura[#Headers])), ROW(3:3)), MATCH($F$14, DetallesDeFactura[#Headers], 0)),\"\")","v":{"v":7,"d":"$7.00"}},{"v":173,"d":"$173.00"}]
[null,{"$f":"IFERROR(INDEX(DetallesDeFactura[],SMALL(IF(DetallesDeFactura[Factura n.°]=rngFactura,ROW(DetallesDeFactura[])-ROW(DetallesDeFactura[#Headers])), ROW(4:4)), MATCH($B$14, DetallesDeFactura[#Headers], 0)),\"\")","v":"Z4570"},{"$f":"IFERROR(INDEX(DetallesDeFactura[],SMALL(IF(DetallesDeFactura[Factura n.°]=rngFactura,ROW(DetallesDeFactura[])-ROW(DetallesDeFactura[#Headers])), ROW(4:4)), MATCH($C$14, DetallesDeFactura[#Headers], 0)),\"\")","v":"Factura 3-456-2 Datos 4"},{"$f":"IFERROR(INDEX(DetallesDeFactura[],SMALL(IF(DetallesDeFactura[Factura n.°]=rngFactura,ROW(DetallesDeFactura[])-ROW(DetallesDeFactura[#Headers])), ROW(4:4)), MATCH($D$14, DetallesDeFactura[#Headers], 0)),\"\")","v":40},{"$f":"IFERROR(INDEX(DetallesDeFactura[],SMALL(IF(DetallesDeFactura[Factura n.°]=rngFactura,ROW(DetallesDeFactura[])-ROW(DetallesDeFactura[#Headers])), ROW(4:4)), MATCH($E$14, DetallesDeFactura[#Headers], 0)),\"\")","v":{"v":7,"d":"$7.00"}},{"$f":"IFERROR(INDEX(DetallesDeFactura[],SMALL(IF(DetallesDeFactura[Factura n.°]=rngFactura,ROW(DetallesDeFactura[])-ROW(DetallesDeFactura[#Headers])), ROW(4:4)), MATCH($F$14, DetallesDeFactura[#Headers], 0)),\"\")","v":{"v":0,"d":"$0.00"}},{"v":280,"d":"$280.00"}]
[null,{"$f":"IFERROR(INDEX(DetallesDeFactura[],SMALL(IF(DetallesDeFactura[Factura n.°]=rngFactura,ROW(DetallesDeFactura[])-ROW(DetallesDeFactura[#Headers])), ROW(5:5)), MATCH($B$14, DetallesDeFactura[#Headers], 0)),\"\")","v":"Z4571"},{"$f":"IFERROR(INDEX(DetallesDeFactura[],SMALL(IF(DetallesDeFactura[Factura n.°]=rngFactura,ROW(DetallesDeFactura[])-ROW(DetallesDeFactura[#Headers])), ROW(5:5)), MATCH($C$14, DetallesDeFactura[#Headers], 0)),\"\")","v":"Factura 3-456-2 Datos 5"},{"$f":"IFERROR(INDEX(DetallesDeFactura[],SMALL(IF(DetallesDeFactura[Factura n.°]=rngFactura,ROW(DetallesDeFactura[])-ROW(DetallesDeFactura[#Headers])), ROW(5:5)), MATCH($D$14, DetallesDeFactura[#Headers], 0)),\"\")","v":10},{"$f":"IFERROR(INDEX(DetallesDeFactura[],SMALL(IF(DetallesDeFactura[Factura n.°]=rngFactura,ROW(DetallesDeFactura[])-ROW(DetallesDeFactura[#Headers])), ROW(5:5)), MATCH($E$14, DetallesDeFactura[#Headers], 0)),\"\")","v":{"v":4,"d":"$4.00"}},{"$f":"IFERROR(INDEX(DetallesDeFactura[],SMALL(IF(DetallesDeFactura[Factura n.°]=rngFactura,ROW(DetallesDeFactura[])-ROW(DetallesDeFactura[#Headers])), ROW(5:5)), MATCH($F$14, DetallesDeFactura[#Headers], 0)),\"\")","v":{"v":0,"d":"$0.00"}},{"v":40,"d":"$40.00"}]
[null,{"$f":"IFERROR(INDEX(DetallesDeFactura[],SMALL(IF(DetallesDeFactura[Factura n.°]=rngFactura,ROW(DetallesDeFactura[])-ROW(DetallesDeFactura[#Headers])), ROW(6:6)), MATCH($B$14, DetallesDeFactura[#Headers], 0)),\"\")","v":"Z4572"},{"$f":"IFERROR(INDEX(DetallesDeFactura[],SMALL(IF(DetallesDeFactura[Factura n.°]=rngFactura,ROW(DetallesDeFactura[])-ROW(DetallesDeFactura[#Headers])), ROW(6:6)), MATCH($C$14, DetallesDeFactura[#Headers], 0)),\"\")","v":"Factura 3-456-2 Datos 6"},{"$f":"IFERROR(INDEX(DetallesDeFactura[],SMALL(IF(DetallesDeFactura[Factura n.°]=rngFactura,ROW(DetallesDeFactura[])-ROW(DetallesDeFactura[#Headers])), ROW(6:6)), MATCH($D$14, DetallesDeFactura[#Headers], 0)),\"\")","v":5},{"$f":"IFERROR(INDEX(DetallesDeFactura[],SMALL(IF(DetallesDeFactura[Factura n.°]=rngFactura,ROW(DetallesDeFactura[])-ROW(DetallesDeFactura[#Headers])), ROW(6:6)), MATCH($E$14, DetallesDeFactura[#Headers], 0)),\"\")","v":{"v":8,"d":"$8.00"}},{"$f":"IFERROR(INDEX(DetallesDeFactura[],SMALL(IF(DetallesDeFactura[Factura n.°]=rngFactura,ROW(DetallesDeFactura[])-ROW(DetallesDeFactura[#Headers])), ROW(6:6)), MATCH($F$14, DetallesDeFactura[#Headers], 0)),\"\")","v":{"v":0,"d":"$0.00"}},{"v":40,"d":"$40.00"}]
[null,{"$f":"IFERROR(INDEX(DetallesDeFactura[],SMALL(IF(DetallesDeFactura[Factura n.°]=rngFactura,ROW(DetallesDeFactura[])-ROW(DetallesDeFactura[#Headers])), ROW(7:7)), MATCH($B$14, DetallesDeFactura[#Headers], 0)),\"\")","v":"Z4573"},{"$f":"IFERROR(INDEX(DetallesDeFactura[],SMALL(IF(DetallesDeFactura[Factura n.°]=rngFactura,ROW(DetallesDeFactura[])-ROW(DetallesDeFactura[#Headers])), ROW(7:7)), MATCH($C$14, DetallesDeFactura[#Headers], 0)),\"\")","v":"Factura 3-456-2 Datos 7"},{"$f":"IFERROR(INDEX(DetallesDeFactura[],SMALL(IF(DetallesDeFactura[Factura n.°]=rngFactura,ROW(DetallesDeFactura[])-ROW(DetallesDeFactura[#Headers])), ROW(7:7)), MATCH($D$14, DetallesDeFactura[#Headers], 0)),\"\")","v":70},{"$f":"IFERROR(INDEX(DetallesDeFactura[],SMALL(IF(DetallesDeFactura[Factura n.°]=rngFactura,ROW(DetallesDeFactura[])-ROW(DetallesDeFactura[#Headers])), ROW(7:7)), MATCH($E$14, DetallesDeFactura[#Headers], 0)),\"\")","v":{"v":6,"d":"$6.00"}},{"$f":"IFERROR(INDEX(DetallesDeFactura[],SMALL(IF(DetallesDeFactura[Factura n.°]=rngFactura,ROW(DetallesDeFactura[])-ROW(DetallesDeFactura[#Headers])), ROW(7:7)), MATCH($F$14, DetallesDeFactura[#Headers], 0)),\"\")","v":{"v":0,"d":"$0.00"}},{"v":420,"d":"$420.00"}]
[null,{"$f":"IFERROR(INDEX(DetallesDeFactura[],SMALL(IF(DetallesDeFactura[Factura n.°]=rngFactura,ROW(DetallesDeFactura[])-ROW(DetallesDeFactura[#Headers])), ROW(8:8)), MATCH($B$14, DetallesDeFactura[#Headers], 0)),\"\")","v":"Z4574"},{"$f":"IFERROR(INDEX(DetallesDeFactura[],SMALL(IF(DetallesDeFactura[Factura n.°]=rngFactura,ROW(DetallesDeFactura[])-ROW(DetallesDeFactura[#Headers])), ROW(8:8)), MATCH($C$14, DetallesDeFactura[#Headers], 0)),\"\")","v":"Factura 3-456-2 Datos 8"},{"$f":"IFERROR(INDEX(DetallesDeFactura[],SMALL(IF(DetallesDeFactura[Factura n.°]=rngFactura,ROW(DetallesDeFactura[])-ROW(DetallesDeFactura[#Headers])), ROW(8:8)), MATCH($D$14, DetallesDeFactura[#Headers], 0)),\"\")","v":25},{"$f":"IFERROR(INDEX(DetallesDeFactura[],SMALL(IF(DetallesDeFactura[Factura n.°]=rngFactura,ROW(DetallesDeFactura[])-ROW(DetallesDeFactura[#Headers])), ROW(8:8)), MATCH($E$14, DetallesDeFactura[#Headers], 0)),\"\")","v":{"v":4,"d":"$4.00"}},{"$f":"IFERROR(INDEX(DetallesDeFactura[],SMALL(IF(DetallesDeFactura[Factura n.°]=rngFactura,ROW(DetallesDeFactura[])-ROW(DetallesDeFactura[#Headers])), ROW(8:8)), MATCH($F$14, DetallesDeFactura[#Headers], 0)),\"\")","v":{"v":0,"d":"$0.00"}},{"v":100,"d":"$100.00"}]
[null,{"$f":"IFERROR(INDEX(DetallesDeFactura[],SMALL(IF(DetallesDeFactura[Factura n.°]=rngFactura,ROW(DetallesDeFactura[])-ROW(DetallesDeFactura[#Headers])), ROW(9:9)), MATCH($B$14, DetallesDeFactura[#Headers], 0)),\"\")","v":"Z4575"},{"$f":"IFERROR(INDEX(DetallesDeFactura[],SMALL(IF(DetallesDeFactura[Factura n.°]=rngFactura,ROW(DetallesDeFactura[])-ROW(DetallesDeFactura[#Headers])), ROW(9:9)), MATCH($C$14, DetallesDeFactura[#Headers], 0)),\"\")","v":"Factura 3-456-2 Datos 9"},{"$f":"IFERROR(INDEX(DetallesDeFactura[],SMALL(IF(DetallesDeFactura[Factura n.°]=rngFactura,ROW(DetallesDeFactura[])-ROW(DetallesDeFactura[#Headers])), ROW(9:9)), MATCH($D$14, DetallesDeFactura[#Headers], 0)),\"\")","v":5},{"$f":"IFERROR(INDEX(DetallesDeFactura[],SMALL(IF(DetallesDeFactura[Factura n.°]=rngFactura,ROW(DetallesDeFactura[])-ROW(DetallesDeFactura[#Headers])), ROW(9:9)), MATCH($E$14, DetallesDeFactura[#Headers], 0)),\"\")","v":{"v":7,"d":"$7.00"}},{"$f":"IFERROR(INDEX(DetallesDeFactura[],SMALL(IF(DetallesDeFactura[Factura n.°]=rngFactura,ROW(DetallesDeFactura[])-ROW(DetallesDeFactura[#Headers])), ROW(9:9)), MATCH($F$14, DetallesDeFactura[#Headers], 0)),\"\")","v":{"v":3,"d":"$3.00"}},{"v":32,"d":"$32.00"}]
[null,{"$f":"IFERROR(INDEX(DetallesDeFactura[],SMALL(IF(DetallesDeFactura[Factura n.°]=rngFactura,ROW(DetallesDeFactura[])-ROW(DetallesDeFactura[#Headers])), ROW(10:10)), MATCH($B$14, DetallesDeFactura[#Headers], 0)),\"\")","v":"Z4576"},{"$f":"IFERROR(INDEX(DetallesDeFactura[],SMALL(IF(DetallesDeFactura[Factura n.°]=rngFactura,ROW(DetallesDeFactura[])-ROW(DetallesDeFactura[#Headers])), ROW(10:10)), MATCH($C$14, DetallesDeFactura[#Headers], 0)),\"\")","v":"Factura 3-456-2 Datos 10"},{"$f":"IFERROR(INDEX(DetallesDeFactura[],SMALL(IF(DetallesDeFactura[Factura n.°]=rngFactura,ROW(DetallesDeFactura[])-ROW(DetallesDeFactura[#Headers])), ROW(10:10)), MATCH($D$14, DetallesDeFactura[#Headers], 0)),\"\")","v":80},{"$f":"IFERROR(INDEX(DetallesDeFactura[],SMALL(IF(DetallesDeFactura[Factura n.°]=rngFactura,ROW(DetallesDeFactura[])-ROW(DetallesDeFactura[#Headers])), ROW(10:10)), MATCH($E$14, DetallesDeFactura[#Headers], 0)),\"\")","v":{"v":1,"d":"$1.00"}},{"$f":"IFERROR(INDEX(DetallesDeFactura[],SMALL(IF(DetallesDeFactura[Factura n.°]=rngFactura,ROW(DetallesDeFactura[])-ROW(DetallesDeFactura[#Headers])), ROW(10:10)), MATCH($F$14, DetallesDeFactura[#Headers], 0)),\"\")","v":{"v":0,"d":"$0.00"}},{"v":80,"d":"$80.00"}]
[null,{"$f":"IFERROR(INDEX(DetallesDeFactura[],SMALL(IF(DetallesDeFactura[Factura n.°]=rngFactura,ROW(DetallesDeFactura[])-ROW(DetallesDeFactura[#Headers])), ROW(11:11)), MATCH($B$14, DetallesDeFactura[#Headers], 0)),\"\")","v":"Z4577"},{"$f":"IFERROR(INDEX(DetallesDeFactura[],SMALL(IF(DetallesDeFactura[Factura n.°]=rngFactura,ROW(DetallesDeFactura[])-ROW(DetallesDeFactura[#Headers])), ROW(11:11)), MATCH($C$14, DetallesDeFactura[#Headers], 0)),\"\")","v":"Factura 3-456-2 Datos 11"},{"$f":"IFERROR(INDEX(DetallesDeFactura[],SMALL(IF(DetallesDeFactura[Factura n.°]=rngFactura,ROW(DetallesDeFactura[])-ROW(DetallesDeFactura[#Headers])), ROW(11:11)), MATCH($D$14, DetallesDeFactura[#Headers], 0)),\"\")","v":65},{"$f":"IFERROR(INDEX(DetallesDeFactura[],SMALL(IF(DetallesDeFactura[Factura n.°]=rngFactura,ROW(DetallesDeFactura[])-ROW(DetallesDeFactura[#Headers])), ROW(11:11)), MATCH($E$14, DetallesDeFactura[#Headers], 0)),\"\")","v":{"v":7,"d":"$7.00"}},{"$f":"IFERROR(INDEX(DetallesDeFactura[],SMALL(IF(DetallesDeFactura[Factura n.°]=rngFactura,ROW(DetallesDeFactura[])-ROW(DetallesDeFactura[#Headers])), ROW(11:11)), MATCH($F$14, DetallesDeFactura[#Headers], 0)),\"\")","v":{"v":0,"d":"$0.00"}},{"v":455,"d":"$455.00"}]
[null,{"$f":"IFERROR(INDEX(DetallesDeFactura[],SMALL(IF(DetallesDeFactura[Factura n.°]=rngFactura,ROW(DetallesDeFactura[])-ROW(DetallesDeFactura[#Headers])), ROW(12:12)), MATCH($B$14, DetallesDeFactura[#Headers], 0)),\"\")","v":"Z4578"},{"$f":"IFERROR(INDEX(DetallesDeFactura[],SMALL(IF(DetallesDeFactura[Factura n.°]=rngFactura,ROW(DetallesDeFactura[])-ROW(DetallesDeFactura[#Headers])), ROW(12:12)), MATCH($C$14, DetallesDeFactura[#Headers], 0)),\"\")","v":"Factura 3-456-2 Datos 12"},{"$f":"IFERROR(INDEX(DetallesDeFactura[],SMALL(IF(DetallesDeFactura[Factura n.°]=rngFactura,ROW(DetallesDeFactura[])-ROW(DetallesDeFactura[#Headers])), ROW(12:12)), MATCH($D$14, DetallesDeFactura[#Headers], 0)),\"\")","v":44},{"$f":"IFERROR(INDEX(DetallesDeFactura[],SMALL(IF(DetallesDeFactura[Factura n.°]=rngFactura,ROW(DetallesDeFactura[])-ROW(DetallesDeFactura[#Headers])), ROW(12:12)), MATCH($E$14, DetallesDeFactura[#Headers], 0)),\"\")","v":{"v":1,"d":"$1.00"}},{"$f":"IFERROR(INDEX(DetallesDeFactura[],SMALL(IF(DetallesDeFactura[Factura n.°]=rngFactura,ROW(DetallesDeFactura[])-ROW(DetallesDeFactura[#Headers])), ROW(12:12)), MATCH($F$14, DetallesDeFactura[#Headers], 0)),\"\")","v":{"v":0,"d":"$0.00"}},{"v":44,"d":"$44.00"}]
[null,{"$f":"IFERROR(INDEX(DetallesDeFactura[],SMALL(IF(DetallesDeFactura[Factura n.°]=rngFactura,ROW(DetallesDeFactura[])-ROW(DetallesDeFactura[#Headers])), ROW(13:13)), MATCH($B$14, DetallesDeFactura[#Headers], 0)),\"\")","v":""},{"$f":"IFERROR(INDEX(DetallesDeFactura[],SMALL(IF(DetallesDeFactura[Factura n.°]=rngFactura,ROW(DetallesDeFactura[])-ROW(DetallesDeFactura[#Headers])), ROW(13:13)), MATCH($C$14, DetallesDeFactura[#Headers], 0)),\"\")","v":""},{"$f":"IFERROR(INDEX(DetallesDeFactura[],SMALL(IF(DetallesDeFactura[Factura n.°]=rngFactura,ROW(DetallesDeFactura[])-ROW(DetallesDeFactura[#Headers])), ROW(13:13)), MATCH($D$14, DetallesDeFactura[#Headers], 0)),\"\")","v":""},{"$f":"IFERROR(INDEX(DetallesDeFactura[],SMALL(IF(DetallesDeFactura[Factura n.°]=rngFactura,ROW(DetallesDeFactura[])-ROW(DetallesDeFactura[#Headers])), ROW(13:13)), MATCH($E$14, DetallesDeFactura[#Headers], 0)),\"\")","v":""},{"$f":"IFERROR(INDEX(DetallesDeFactura[],SMALL(IF(DetallesDeFactura[Factura n.°]=rngFactura,ROW(DetallesDeFactura[])-ROW(DetallesDeFactura[#Headers])), ROW(13:13)), MATCH($F$14, DetallesDeFactura[#Headers], 0)),\"\")","v":""},""]
[null,{"$f":"IFERROR(INDEX(DetallesDeFactura[],SMALL(IF(DetallesDeFactura[Factura n.°]=rngFactura,ROW(DetallesDeFactura[])-ROW(DetallesDeFactura[#Headers])), ROW(14:14)), MATCH($B$14, DetallesDeFactura[#Headers], 0)),\"\")","v":""},{"$f":"IFERROR(INDEX(DetallesDeFactura[],SMALL(IF(DetallesDeFactura[Factura n.°]=rngFactura,ROW(DetallesDeFactura[])-ROW(DetallesDeFactura[#Headers])), ROW(14:14)), MATCH($C$14, DetallesDeFactura[#Headers], 0)),\"\")","v":""},{"$f":"IFERROR(INDEX(DetallesDeFactura[],SMALL(IF(DetallesDeFactura[Factura n.°]=rngFactura,ROW(DetallesDeFactura[])-ROW(DetallesDeFactura[#Headers])), ROW(14:14)), MATCH($D$14, DetallesDeFactura[#Headers], 0)),\"\")","v":""},{"$f":"IFERROR(INDEX(DetallesDeFactura[],SMALL(IF(DetallesDeFactura[Factura n.°]=rngFactura,ROW(DetallesDeFactura[])-ROW(DetallesDeFactura[#Headers])), ROW(14:14)), MATCH($E$14, DetallesDeFactura[#Headers], 0)),\"\")","v":""},{"$f":"IFERROR(INDEX(DetallesDeFactura[],SMALL(IF(DetallesDeFactura[Factura n.°]=rngFactura,ROW(DetallesDeFactura[])-ROW(DetallesDeFactura[#Headers])), ROW(14:14)), MATCH($F$14, DetallesDeFactura[#Headers], 0)),\"\")","v":""},""]
[null,{"$f":"IFERROR(INDEX(DetallesDeFactura[],SMALL(IF(DetallesDeFactura[Factura n.°]=rngFactura,ROW(DetallesDeFactura[])-ROW(DetallesDeFactura[#Headers])), ROW(15:15)), MATCH($B$14, DetallesDeFactura[#Headers], 0)),\"\")","v":""},{"$f":"IFERROR(INDEX(DetallesDeFactura[],SMALL(IF(DetallesDeFactura[Factura n.°]=rngFactura,ROW(DetallesDeFactura[])-ROW(DetallesDeFactura[#Headers])), ROW(15:15)), MATCH($C$14, DetallesDeFactura[#Headers], 0)),\"\")","v":""},{"$f":"IFERROR(INDEX(DetallesDeFactura[],SMALL(IF(DetallesDeFactura[Factura n.°]=rngFactura,ROW(DetallesDeFactura[])-ROW(DetallesDeFactura[#Headers])), ROW(15:15)), MATCH($D$14, DetallesDeFactura[#Headers], 0)),\"\")","v":""},{"$f":"IFERROR(INDEX(DetallesDeFactura[],SMALL(IF(DetallesDeFactura[Factura n.°]=rngFactura,ROW(DetallesDeFactura[])-ROW(DetallesDeFactura[#Headers])), ROW(15:15)), MATCH($E$14, DetallesDeFactura[#Headers], 0)),\"\")","v":""},{"$f":"IFERROR(INDEX(DetallesDeFactura[],SMALL(IF(DetallesDeFactura[Factura n.°]=rngFactura,ROW(DetallesDeFactura[])-ROW(DetallesDeFactura[#Headers])), ROW(15:15)), MATCH($F$14, DetallesDeFactura[#Headers], 0)),\"\")","v":""},""]
[null,{"$f":"IFERROR(INDEX(DetallesDeFactura[],SMALL(IF(DetallesDeFactura[Factura n.°]=rngFactura,ROW(DetallesDeFactura[])-ROW(DetallesDeFactura[#Headers])), ROW(16:16)), MATCH($B$14, DetallesDeFactura[#Headers], 0)),\"\")","v":""},{"$f":"IFERROR(INDEX(DetallesDeFactura[],SMALL(IF(DetallesDeFactura[Factura n.°]=rngFactura,ROW(DetallesDeFactura[])-ROW(DetallesDeFactura[#Headers])), ROW(16:16)), MATCH($C$14, DetallesDeFactura[#Headers], 0)),\"\")","v":""},{"$f":"IFERROR(INDEX(DetallesDeFactura[],SMALL(IF(DetallesDeFactura[Factura n.°]=rngFactura,ROW(DetallesDeFactura[])-ROW(DetallesDeFactura[#Headers])), ROW(16:16)), MATCH($D$14, DetallesDeFactura[#Headers], 0)),\"\")","v":""},{"$f":"IFERROR(INDEX(DetallesDeFactura[],SMALL(IF(DetallesDeFactura[Factura n.°]=rngFactura,ROW(DetallesDeFactura[])-ROW(DetallesDeFactura[#Headers])), ROW(16:16)), MATCH($E$14, DetallesDeFactura[#Headers], 0)),\"\")","v":""},{"$f":"IFERROR(INDEX(DetallesDeFactura[],SMALL(IF(DetallesDeFactura[Factura n.°]=rngFactura,ROW(DetallesDeFactura[])-ROW(DetallesDeFactura[#Headers])), ROW(16:16)), MATCH($F$14, DetallesDeFactura[#Headers], 0)),\"\")","v":""},""]
[null,{"$f":"IFERROR(INDEX(DetallesDeFactura[],SMALL(IF(DetallesDeFactura[Factura n.°]=rngFactura,ROW(DetallesDeFactura[])-ROW(DetallesDeFactura[#Headers])), ROW(17:17)), MATCH($B$14, DetallesDeFactura[#Headers], 0)),\"\")","v":""},{"$f":"IFERROR(INDEX(DetallesDeFactura[],SMALL(IF(DetallesDeFactura[Factura n.°]=rngFactura,ROW(DetallesDeFactura[])-ROW(DetallesDeFactura[#Headers])), ROW(17:17)), MATCH($C$14, DetallesDeFactura[#Headers], 0)),\"\")","v":""},{"$f":"IFERROR(INDEX(DetallesDeFactura[],SMALL(IF(DetallesDeFactura[Factura n.°]=rngFactura,ROW(DetallesDeFactura[])-ROW(DetallesDeFactura[#Headers])), ROW(17:17)), MATCH($D$14, DetallesDeFactura[#Headers], 0)),\"\")","v":""},{"$f":"IFERROR(INDEX(DetallesDeFactura[],SMALL(IF(DetallesDeFactura[Factura n.°]=rngFactura,ROW(DetallesDeFactura[])-ROW(DetallesDeFactura[#Headers])), ROW(17:17)), MATCH($E$14, DetallesDeFactura[#Headers], 0)),\"\")","v":""},{"$f":"IFERROR(INDEX(DetallesDeFactura[],SMALL(IF(DetallesDeFactura[Factura n.°]=rngFactura,ROW(DetallesDeFactura[])-ROW(DetallesDeFactura[#Headers])), ROW(17:17)), MATCH($F$14, DetallesDeFactura[#Headers], 0)),\"\")","v":""},""]
[null,{"$f":"IFERROR(INDEX(DetallesDeFactura[],SMALL(IF(DetallesDeFactura[Factura n.°]=rngFactura,ROW(DetallesDeFactura[])-ROW(DetallesDeFactura[#Headers])), ROW(18:18)), MATCH($B$14, DetallesDeFactura[#Headers], 0)),\"\")","v":""},{"$f":"IFERROR(INDEX(DetallesDeFactura[],SMALL(IF(DetallesDeFactura[Factura n.°]=rngFactura,ROW(DetallesDeFactura[])-ROW(DetallesDeFactura[#Headers])), ROW(18:18)), MATCH($C$14, DetallesDeFactura[#Headers], 0)),\"\")","v":""},{"$f":"IFERROR(INDEX(DetallesDeFactura[],SMALL(IF(DetallesDeFactura[Factura n.°]=rngFactura,ROW(DetallesDeFactura[])-ROW(DetallesDeFactura[#Headers])), ROW(18:18)), MATCH($D$14, DetallesDeFactura[#Headers], 0)),\"\")","v":""},{"$f":"IFERROR(INDEX(DetallesDeFactura[],SMALL(IF(DetallesDeFactura[Factura n.°]=rngFactura,ROW(DetallesDeFactura[])-ROW(DetallesDeFactura[#Headers])), ROW(18:18)), MATCH($E$14, DetallesDeFactura[#Headers], 0)),\"\")","v":""},{"$f":"IFERROR(INDEX(DetallesDeFactura[],SMALL(IF(DetallesDeFactura[Factura n.°]=rngFactura,ROW(DetallesDeFactura[])-ROW(DetallesDeFactura[#Headers])), ROW(18:18)), MATCH($F$14, DetallesDeFactura[#Headers], 0)),\"\")","v":""},""]
[null,{"$f":"IFERROR(INDEX(DetallesDeFactura[],SMALL(IF(DetallesDeFactura[Factura n.°]=rngFactura,ROW(DetallesDeFactura[])-ROW(DetallesDeFactura[#Headers])), ROW(19:19)), MATCH($B$14, DetallesDeFactura[#Headers], 0)),\"\")","v":""},{"$f":"IFERROR(INDEX(DetallesDeFactura[],SMALL(IF(DetallesDeFactura[Factura n.°]=rngFactura,ROW(DetallesDeFactura[])-ROW(DetallesDeFactura[#Headers])), ROW(19:19)), MATCH($C$14, DetallesDeFactura[#Headers], 0)),\"\")","v":""},{"$f":"IFERROR(INDEX(DetallesDeFactura[],SMALL(IF(DetallesDeFactura[Factura n.°]=rngFactura,ROW(DetallesDeFactura[])-ROW(DetallesDeFactura[#Headers])), ROW(19:19)), MATCH($D$14, DetallesDeFactura[#Headers], 0)),\"\")","v":""},{"$f":"IFERROR(INDEX(DetallesDeFactura[],SMALL(IF(DetallesDeFactura[Factura n.°]=rngFactura,ROW(DetallesDeFactura[])-ROW(DetallesDeFactura[#Headers])), ROW(19:19)), MATCH($E$14, DetallesDeFactura[#Headers], 0)),\"\")","v":""},{"$f":"IFERROR(INDEX(DetallesDeFactura[],SMALL(IF(DetallesDeFactura[Factura n.°]=rngFactura,ROW(DetallesDeFactura[])-ROW(DetallesDeFactura[#Headers])), ROW(19:19)), MATCH($F$14, DetallesDeFactura[#Headers], 0)),\"\")","v":""},""]
[null,{"$f":"IFERROR(INDEX(DetallesDeFactura[],SMALL(IF(DetallesDeFactura[Factura n.°]=rngFactura,ROW(DetallesDeFactura[])-ROW(DetallesDeFactura[#Headers])), ROW(20:20)), MATCH($B$14, DetallesDeFactura[#Headers], 0)),\"\")","v":""},{"$f":"IFERROR(INDEX(DetallesDeFactura[],SMALL(IF(DetallesDeFactura[Factura n.°]=rngFactura,ROW(DetallesDeFactura[])-ROW(DetallesDeFactura[#Headers])), ROW(20:20)), MATCH($C$14, DetallesDeFactura[#Headers], 0)),\"\")","v":""},{"$f":"IFERROR(INDEX(DetallesDeFactura[],SMALL(IF(DetallesDeFactura[Factura n.°]=rngFactura,ROW(DetallesDeFactura[])-ROW(DetallesDeFactura[#Headers])), ROW(20:20)), MATCH($D$14, DetallesDeFactura[#Headers], 0)),\"\")","v":""},{"$f":"IFERROR(INDEX(DetallesDeFactura[],SMALL(IF(DetallesDeFactura[Factura n.°]=rngFactura,ROW(DetallesDeFactura[])-ROW(DetallesDeFactura[#Headers])), ROW(20:20)), MATCH($E$14, DetallesDeFactura[#Headers], 0)),\"\")","v":""},{"$f":"IFERROR(INDEX(DetallesDeFactura[],SMALL(IF(DetallesDeFactura[Factura n.°]=rngFactura,ROW(DetallesDeFactura[])-ROW(DetallesDeFactura[#Headers])), ROW(20:20)), MATCH($F$14, DetallesDeFactura[#Headers], 0)),\"\")","v":""},""]
[null,{"$f":"IFERROR(INDEX(DetallesDeFactura[],SMALL(IF(DetallesDeFactura[Factura n.°]=rngFactura,ROW(DetallesDeFactura[])-ROW(DetallesDeFactura[#Headers])), ROW(21:21)), MATCH($B$14, DetallesDeFactura[#Headers], 0)),\"\")","v":""},{"$f":"IFERROR(INDEX(DetallesDeFactura[],SMALL(IF(DetallesDeFactura[Factura n.°]=rngFactura,ROW(DetallesDeFactura[])-ROW(DetallesDeFactura[#Headers])), ROW(21:21)), MATCH($C$14, DetallesDeFactura[#Headers], 0)),\"\")","v":""},{"$f":"IFERROR(INDEX(DetallesDeFactura[],SMALL(IF(DetallesDeFactura[Factura n.°]=rngFactura,ROW(DetallesDeFactura[])-ROW(DetallesDeFactura[#Headers])), ROW(21:21)), MATCH($D$14, DetallesDeFactura[#Headers], 0)),\"\")","v":""},{"$f":"IFERROR(INDEX(DetallesDeFactura[],SMALL(IF(DetallesDeFactura[Factura n.°]=rngFactura,ROW(DetallesDeFactura[])-ROW(DetallesDeFactura[#Headers])), ROW(21:21)), MATCH($E$14, DetallesDeFactura[#Headers], 0)),\"\")","v":""},{"$f":"IFERROR(INDEX(DetallesDeFactura[],SMALL(IF(DetallesDeFactura[Factura n.°]=rngFactura,ROW(DetallesDeFactura[])-ROW(DetallesDeFactura[#Headers])), ROW(21:21)), MATCH($F$14, DetallesDeFactura[#Headers], 0)),\"\")","v":""},""]
[]
[{"$nulls":4},"Subtotal de la factura",null,{"$f":"SUM(FacturaDeProyecto[Precio])","v":{"v":1819,"d":"1,819.00 €"}}]
[null,"Total a pagar en <#> días. Cuentas vencidas sujetas a un cargo por servicios de <#> % al mes.",null,null,{"$f":"IFERROR(\"Impuesto sobre las ventas (\" & TEXT(VLOOKUP(rngFactura,FacturasPrincipal[],5),\"0.00%\") & \")\",\"Tasa de impuesto sobre las ventas\")","v":"Impuesto sobre las ventas (8.75%)"},null,{"$f":"IFERROR(G36*VLOOKUP(rngFactura,FacturasPrincipal[],5),0)","v":{"v":159.1625,"d":"159.16 €"}}]
[{"$nulls":4},"Otros",null,{"$f":"IFERROR(VLOOKUP(rngFactura,FacturasPrincipal[],6),0)","v":{"v":0,"d":"0.00 €"}}]
[null,{"$f":"\"Haz todos los cheques pagaderos a nombre de \"&NombreDeLaCompañía&\".\"","v":"Haz todos los cheques pagaderos a nombre de EL NOMBRE DE TU EMPRESA."},null,null,"Depósito recibido",null,{"$f":"IFERROR(VLOOKUP(rngFactura,FacturasPrincipal[],7),0)","v":{"v":0,"d":"0.00 €"}}]
[null,"¡Agradecemos su confianza!",null,null,"TOTAL",null,{"$f":"(G36+G37+G38)-G39","v":{"v":1978.1625,"d":"1,978.16 €"}}]

{"sheet":"Clientes","index":1,"n_rows":7,"n_cols":13,"rows_kept":7}
[{"$nulls":12}," "]
[]
[]
[null,"Búsqueda","Nº de empresa","Nombre de la empresa","Nombre de contacto","Dirección","Ciudad","Estado","Código postal","Teléfono","Correo electrónico","Fax"]
[null,{"$f":"C5& \" - \"&D5","v":"1 - Tailspin Toys "},1,"Tailspin Toys ","Candela Arrais","Calle Los Cerezos 345","Guadalajara","JA",12345,"432-555-0178","alguien@ejemplo.com","432-555-0187"]
[null,"2 - Contoso, Ltd",2,"Contoso, Ltd","Alejandra Arellano","Calle Los Nogales 567","San Marcos","GR",98765,"432-555-0189","alguien@ejemplo.com","432-555-0123"]
[null,"Total",{"$f":"\"Clientes totales: \"&SUBTOTAL(103,ListadoDeClientes[Nº de empresa])","v":"Clientes totales: 2"}]

{"sheet":"Facturas - principales","index":2,"n_rows":7,"n_cols":12,"rows_kept":7}
[{"$nulls":11}," "]
[]
[]
[null,"Factura n.°","Empresa","Fecha de la factura","Descripción del proyecto","Tasa impositiva","Otros","Depósito","Total de detalle","Total de la factura","Notas"]
[null,"3-456-1","1 - Tailspin Toys ",{"$f":"TODAY()","v":"2019-11-19"},"Proyecto 1",{"v":0.0875,"d":"8.75%"},{"v":100,"d":"$100.00"},{"v":100,"d":"$100.00"},{"$f":"SUMIF(DetallesDeFactura[Factura n.°],\"=\"&FacturasPrincipal[[#This Row],[Factura n.°]],DetallesDeFactura[Total])","v":{"v":2660,"d":"$2,660.00"}},{"$f":"(FacturasPrincipal[[#This Row],[Total de detalle]]*(1+FacturasPrincipal[[#This Row],[Tasa impositiva]]))+FacturasPrincipal[[#This Row],[Otros]]-FacturasPrincipal[[#This Row],[Depósito]]","v":{"v":2892.7499999999995,"d":"$2,892.75"}}]
[null,"3-456-2","2 - Contoso, Ltd",{"$f":"TODAY()+10","v":"2019-11-29"},"Proyecto 2",{"v":0.0875,"d":"8.75%"},null,null,{"$f":"SUMIF(DetallesDeFactura[Factura n.°],\"=\"&FacturasPrincipal[[#This Row],[Factura n.°]],DetallesDeFactura[Total])","v":{"v":2014,"d":"$2,014.00"}},{"$f":"(FacturasPrincipal[[#This Row],[Total de detalle]]*(1+FacturasPrincipal[[#This Row],[Tasa impositiva]]))+FacturasPrincipal[[#This Row],[Otros]]-FacturasPrincipal[[#This Row],[Depósito]]","v":{"v":2190.225,"d":"$2,190.23"}}]
[null,{"$f":"\"Total Invoices: \"&SUBTOTAL(103,FacturasPrincipal[Factura n.°])","v":"Total Invoices: 2"},{"$nulls":3},"Totales:",{"$f":"SUBTOTAL(109,FacturasPrincipal[Otros])","v":{"v":100,"d":"$100.00"}},{"$f":"SUBTOTAL(109,FacturasPrincipal[Depósito])","v":{"v":100,"d":"$100.00"}},{"$f":"SUBTOTAL(109,FacturasPrincipal[Total de detalle])","v":{"v":4674,"d":"$4,674.00"}},{"$f":"SUBTOTAL(109,FacturasPrincipal[Total de la factura])","v":{"v":5082.974999999999,"d":"$5,082.98"}}]

{"sheet":"Detalles de la factura","index":3,"n_rows":36,"n_cols":9,"rows_kept":36}
[{"$nulls":8}," "]
[]
[]
[null,"Descripción","Factura n.°","Artículo n.º","Cantidad","Precio unitario","Descuento","Total"]
[null,"Factura 3-456-1 Datos 1","3-456-1",1,1,{"v":1,"d":"$1.00"},{"v":1,"d":"$1.00"},{"$f":"(DetallesDeFactura[[#This Row],[Cantidad]]*DetallesDeFactura[[#This Row],[Precio unitario]])-DetallesDeFactura[[#This Row],[Descuento]]","v":{"v":0,"d":"$0.00"}}]
[null,"Factura 3-456-1 Datos 2","3-456-1",2,2,{"v":2,"d":"$2.00"},{"v":2,"d":"$2.00"},{"$f":"(DetallesDeFactura[[#This Row],[Cantidad]]*DetallesDeFactura[[#This Row],[Precio unitario]])-DetallesDeFactura[[#This Row],[Descuento]]","v":{"v":2,"d":"$2.00"}}]
[null,"Factura 3-456-1 Datos 3","3-456-1",3,3,{"v":3,"d":"$3.00"},{"v":3,"d":"$3.00"},{"$f":"(DetallesDeFactura[[#This Row],[Cantidad]]*DetallesDeFactura[[#This Row],[Precio unitario]])-DetallesDeFactura[[#This Row],[Descuento]]","v":{"v":6,"d":"$6.00"}}]
[null,"Factura 3-456-1 Datos 4","3-456-1",4,4,{"v":4,"d":"$4.00"},{"v":4,"d":"$4.00"},{"$f":"(DetallesDeFactura[[#This Row],[Cantidad]]*DetallesDeFactura[[#This Row],[Precio unitario]])-DetallesDeFactura[[#This Row],[Descuento]]","v":{"v":12,"d":"$12.00"}}]
[null,"Factura 3-456-1 Datos 5","3-456-1",5,5,{"v":5,"d":"$5.00"},{"v":5,"d":"$5.00"},{"$f":"(DetallesDeFactura[[#This Row],[Cantidad]]*DetallesDeFactura[[#This Row],[Precio unitario]])-DetallesDeFactura[[#This Row],[Descuento]]","v":{"v":20,"d":"$20.00"}}]
[null,"Factura 3-456-1 Datos 6","3-456-1",6,6,{"v":6,"d":"$6.00"},{"v":6,"d":"$6.00"},{"$f":"(DetallesDeFactura[[#This Row],[Cantidad]]*DetallesDeFactura[[#This Row],[Precio unitario]])-DetallesDeFactura[[#This Row],[Descuento]]","v":{"v":30,"d":"$30.00"}}]
[null,"Factura 3-456-1 Datos 7","3-456-1",7,7,{"v":7,"d":"$7.00"},{"v":7,"d":"$7.00"},{"$f":"(DetallesDeFactura[[#This Row],[Cantidad]]*DetallesDeFactura[[#This Row],[Precio unitario]])-DetallesDeFactura[[#This Row],[Descuento]]","v":{"v":42,"d":"$42.00"}}]
[null,"Factura 3-456-1 Datos 8","3-456-1",8,8,{"v":8,"d":"$8.00"},{"v":8,"d":"$8.00"},{"$f":"(DetallesDeFactura[[#This Row],[Cantidad]]*DetallesDeFactura[[#This Row],[Precio unitario]])-DetallesDeFactura[[#This Row],[Descuento]]","v":{"v":56,"d":"$56.00"}}]
[null,"Factura 3-456-1 Datos 9","3-456-1",9,9,{"v":9,"d":"$9.00"},{"v":9,"d":"$9.00"},{"$f":"(DetallesDeFactura[[#This Row],[Cantidad]]*DetallesDeFactura[[#This Row],[Precio unitario]])-DetallesDeFactura[[#This Row],[Descuento]]","v":{"v":72,"d":"$72.00"}}]
[null,"Factura 3-456-1 Datos 10","3-456-1",10,10,{"v":10,"d":"$10.00"},{"v":10,"d":"$10.00"},{"$f":"(DetallesDeFactura[[#This Row],[Cantidad]]*DetallesDeFactura[[#This Row],[Precio unitario]])-DetallesDeFactura[[#This Row],[Descuento]]","v":{"v":90,"d":"$90.00"}}]
[null,"Factura 3-456-1 Datos 11","3-456-1",11,11,{"v":11,"d":"$11.00"},{"v":11,"d":"$11.00"},{"$f":"(DetallesDeFactura[[#This Row],[Cantidad]]*DetallesDeFactura[[#This Row],[Precio unitario]])-DetallesDeFactura[[#This Row],[Descuento]]","v":{"v":110,"d":"$110.00"}}]
[null,"Factura 3-456-1 Datos 12","3-456-1",12,12,{"v":12,"d":"$12.00"},{"v":12,"d":"$12.00"},{"$f":"(DetallesDeFactura[[#This Row],[Cantidad]]*DetallesDeFactura[[#This Row],[Precio unitario]])-DetallesDeFactura[[#This Row],[Descuento]]","v":{"v":132,"d":"$132.00"}}]
[null,"Factura 3-456-1 Datos 13","3-456-1",13,13,{"v":13,"d":"$13.00"},{"v":13,"d":"$13.00"},{"$f":"(DetallesDeFactura[[#This Row],[Cantidad]]*DetallesDeFactura[[#This Row],[Precio unitario]])-DetallesDeFactura[[#This Row],[Descuento]]","v":{"v":156,"d":"$156.00"}}]
[null,"Factura 3-456-1 Datos 14","3-456-1",14,14,{"v":14,"d":"$14.00"},{"v":14,"d":"$14.00"},{"$f":"(DetallesDeFactura[[#This Row],[Cantidad]]*DetallesDeFactura[[#This Row],[Precio unitario]])-DetallesDeFactura[[#This Row],[Descuento]]","v":{"v":182,"d":"$182.00"}}]
[null,"Factura 3-456-1 Datos 15","3-456-1",15,15,{"v":15,"d":"$15.00"},{"v":15,"d":"$15.00"},{"$f":"(DetallesDeFactura[[#This Row],[Cantidad]]*DetallesDeFactura[[#This Row],[Precio unitario]])-DetallesDeFactura[[#This Row],[Descuento]]","v":{"v":210,"d":"$210.00"}}]
[null,"Factura 3-456-1 Datos 16","3-456-1",16,16,{"v":16,"d":"$16.00"},{"v":16,"d":"$16.00"},{"$f":"(DetallesDeFactura[[#This Row],[Cantidad]]*DetallesDeFactura[[#This Row],[Precio unitario]])-DetallesDeFactura[[#This Row],[Descuento]]","v":{"v":240,"d":"$240.00"}}]
[null,"Factura 3-456-1 Datos 17","3-456-1",17,17,{"v":17,"d":"$17.00"},{"v":17,"d":"$17.00"},{"$f":"(DetallesDeFactura[[#This Row],[Cantidad]]*DetallesDeFactura[[#This Row],[Precio unitario]])-DetallesDeFactura[[#This Row],[Descuento]]","v":{"v":272,"d":"$272.00"}}]
[null,"Factura 3-456-1 Datos 18","3-456-1",18,18,{"v":18,"d":"$18.00"},{"v":18,"d":"$18.00"},{"$f":"(DetallesDeFactura[[#This Row],[Cantidad]]*DetallesDeFactura[[#This Row],[Precio unitario]])-DetallesDeFactura[[#This Row],[Descuento]]","v":{"v":306,"d":"$306.00"}}]
[null,"Factura 3-456-1 Datos 19","3-456-1",19,19,{"v":19,"d":"$19.00"},{"v":19,"d":"$19.00"},{"$f":"(DetallesDeFactura[[#This Row],[Cantidad]]*DetallesDeFactura[[#This Row],[Precio unitario]])-DetallesDeFactura[[#This Row],[Descuento]]","v":{"v":342,"d":"$342.00"}}]
[null,"Factura 3-456-1 Datos 20","3-456-1",20,20,{"v":20,"d":"$20.00"},{"v":20,"d":"$20.00"},{"$f":"(DetallesDeFactura[[#This Row],[Cantidad]]*DetallesDeFactura[[#This Row],[Precio unitario]])-DetallesDeFactura[[#This Row],[Descuento]]","v":{"v":380,"d":"$380.00"}}]
[null,"Factura 3-456-2 Datos 1","3-456-2","Z4567",39,{"v":5,"d":"$5.00"},null,{"$f":"(DetallesDeFactura[[#This Row],[Cantidad]]*DetallesDeFactura[[#This Row],[Precio unitario]])-DetallesDeFactura[[#This Row],[Descuento]]","v":{"v":195,"d":"$195.00"}}]
[null,"Factura 3-456-2 Datos 2","3-456-2","Z4568",40,{"v":4,"d":"$4.00"},{"v":5,"d":"$5.00"},{"$f":"(DetallesDeFactura[[#This Row],[Cantidad]]*DetallesDeFactura[[#This Row],[Precio unitario]])-DetallesDeFactura[[#This Row],[Descuento]]","v":{"v":155,"d":"$155.00"}}]
[null,"Factura 3-456-2 Datos 3","3-456-2","Z4569",30,{"v":6,"d":"$6.00"},{"v":7,"d":"$7.00"},{"$f":"(DetallesDeFactura[[#This Row],[Cantidad]]*DetallesDeFactura[[#This Row],[Precio unitario]])-DetallesDeFactura[[#This Row],[Descuento]]","v":{"v":173,"d":"$173.00"}}]
[null,"Factura 3-456-2 Datos 4","3-456-2","Z4570",40,{"v":7,"d":"$7.00"},null,{"$f":"(DetallesDeFactura[[#This Row],[Cantidad]]*DetallesDeFactura[[#This Row],[Precio unitario]])-DetallesDeFactura[[#This Row],[Descuento]]","v":{"v":280,"d":"$280.00"}}]
[null,"Factura 3-456-2 Datos 5","3-456-2","Z4571",10,{"v":4,"d":"$4.00"},null,{"$f":"(DetallesDeFactura[[#This Row],[Cantidad]]*DetallesDeFactura[[#This Row],[Precio unitario]])-DetallesDeFactura[[#This Row],[Descuento]]","v":{"v":40,"d":"$40.00"}}]
[null,"Factura 3-456-2 Datos 6","3-456-2","Z4572",5,{"v":8,"d":"$8.00"},null,{"$f":"(DetallesDeFactura[[#This Row],[Cantidad]]*DetallesDeFactura[[#This Row],[Precio unitario]])-DetallesDeFactura[[#This Row],[Descuento]]","v":{"v":40,"d":"$40.00"}}]
[null,"Factura 3-456-2 Datos 7","3-456-2","Z4573",70,{"v":6,"d":"$6.00"},null,{"$f":"(DetallesDeFactura[[#This Row],[Cantidad]]*DetallesDeFactura[[#This Row],[Precio unitario]])-DetallesDeFactura[[#This Row],[Descuento]]","v":{"v":420,"d":"$420.00"}}]
[null,"Factura 3-456-2 Datos 8","3-456-2","Z4574",25,{"v":4,"d":"$4.00"},null,{"$f":"(DetallesDeFactura[[#This Row],[Cantidad]]*DetallesDeFactura[[#This Row],[Precio unitario]])-DetallesDeFactura[[#This Row],[Descuento]]","v":{"v":100,"d":"$100.00"}}]
[null,"Factura 3-456-2 Datos 9","3-456-2","Z4575",5,{"v":7,"d":"$7.00"},{"v":3,"d":"$3.00"},{"$f":"(DetallesDeFactura[[#This Row],[Cantidad]]*DetallesDeFactura[[#This Row],[Precio unitario]])-DetallesDeFactura[[#This Row],[Descuento]]","v":{"v":32,"d":"$32.00"}}]
[null,"Factura 3-456-2 Datos 10","3-456-2","Z4576",80,{"v":1,"d":"$1.00"},null,{"$f":"(DetallesDeFactura[[#This Row],[Cantidad]]*DetallesDeFactura[[#This Row],[Precio unitario]])-DetallesDeFactura[[#This Row],[Descuento]]","v":{"v":80,"d":"$80.00"}}]
[null,"Factura 3-456-2 Datos 11","3-456-2","Z4577",65,{"v":7,"d":"$7.00"},null,{"$f":"(DetallesDeFactura[[#This Row],[Cantidad]]*DetallesDeFactura[[#This Row],[Precio unitario]])-DetallesDeFactura[[#This Row],[Descuento]]","v":{"v":455,"d":"$455.00"}}]
[null,"Factura 3-456-2 Datos 12","3-456-2","Z4578",44,{"v":1,"d":"$1.00"},null,{"$f":"(DetallesDeFactura[[#This Row],[Cantidad]]*DetallesDeFactura[[#This Row],[Precio unitario]])-DetallesDeFactura[[#This Row],[Descuento]]","v":{"v":44,"d":"$44.00"}}]